[Event "*** Titled Tuesday Blitz"]
[Site "Chess.com"]
[Date "2021.03.09"]
[Round "10"]
[White "Hikaru"]
[Black "Eltaj_Safarli"]
[Result "0-1"]
[WhiteElo "3154"]
[BlackElo "2928"]
[TimeControl "180+1"]
[EndTime "12:00:16 PST"]
[Termination "Eltaj_Safarli won by resignation"]

1. e4 {[%clk 0:03:00.9]} 1... c5 {[%clk 0:02:59.3]} 2. Nf3 {[%clk 0:03:00.6]}
2... Nc6 {[%clk 0:02:57.9]} 3. c3 {[%clk 0:03:00.2]} 3... Nf6 {[%clk 0:02:53.9]}
4. e5 {[%clk 0:02:58.6]} 4... Nd5 {[%clk 0:02:53.9]} 5. Bc4 {[%clk 0:02:59.3]}
5... Nb6 {[%clk 0:02:52.1]} 6. Bb3 {[%clk 0:02:59.8]} 6... d5 {[%clk 0:02:51.5]}
7. exd6 {[%clk 0:03:00.1]} 7... Qxd6 {[%clk 0:02:49.7]} 8. O-O {[%clk
0:02:58.4]} 8... Bf5 {[%clk 0:02:47.1]} 9. d4 {[%clk 0:02:54.1]} 9... e6 {[%clk
0:02:46.5]} 10. Na3 {[%clk 0:02:48.9]} 10... a6 {[%clk 0:02:37.4]} 11. Be3
{[%clk 0:02:48.8]} 11... cxd4 {[%clk 0:02:25.3]} 12. Nxd4 {[%clk 0:02:49.7]}
12... Nxd4 {[%clk 0:02:25.4]} 13. Bxd4 {[%clk 0:02:49.8]} 13... Be7 {[%clk
0:02:07.3]} 14. Qf3 {[%clk 0:02:18.8]} 14... Qc7 {[%clk 0:01:53.9]} 15. Qg3
{[%clk 0:02:18.6]} 15... Qxg3 {[%clk 0:01:52.9]} 16. hxg3 {[%clk 0:02:18.6]}
16... Nd7 {[%clk 0:01:31.6]} 17. Bxg7 {[%clk 0:02:16.1]} 17... Rg8 {[%clk
0:01:32]} 18. Bd4 {[%clk 0:02:16.7]} 18... h5 {[%clk 0:01:32.7]} 19. Nc4 {[%clk
0:02:10.2]} 19... O-O-O {[%clk 0:01:14.9]} 20. Rfd1 {[%clk 0:01:50.2]} 20... Be4
{[%clk 0:01:01.1]} 21. Ne5 {[%clk 0:01:29.5]} 21... Nxe5 {[%clk 0:00:51.5]} 22.
Bxe5 {[%clk 0:01:30.4]} 22... h4 {[%clk 0:00:52.4]} 23. f3 {[%clk 0:01:04]}
23... Bc6 {[%clk 0:00:40.5]} 24. Kh2 {[%clk 0:00:23]} 24... hxg3+ {[%clk
0:00:34.6]} 25. Bxg3 {[%clk 0:00:23.9]} 25... Rh8+ {[%clk 0:00:35.1]} 26. Kg1
{[%clk 0:00:23.8]} 26... Rdg8 {[%clk 0:00:35.2]} 27. Kf2 {[%clk 0:00:17.5]}
27... Bc5+ {[%clk 0:00:34.5]} 28. Rd4 {[%clk 0:00:18.1]} 28... Rg5 {[%clk
0:00:24.6]} 29. Bf4 {[%clk 0:00:16.9]} 29... Rf5 {[%clk 0:00:20.9]} 30. Be3
{[%clk 0:00:13.6]} 30... Bxd4 {[%clk 0:00:21.3]} 31. cxd4 {[%clk 0:00:11.1]}
31... Bd5 {[%clk 0:00:17.1]} 32. Rc1+ {[%clk 0:00:10.2]} 32... Kd7 {[%clk
0:00:17.1]} 33. Bc2 {[%clk 0:00:10.8]} 33... Rfh5 {[%clk 0:00:16.7]} 34. Be4
{[%clk 0:00:10.4]} 34... Rh1 {[%clk 0:00:15.7]} 35. Rc5 {[%clk 0:00:10.1]} 35...
Rc8 {[%clk 0:00:15.6]} 36. Bxd5 {[%clk 0:00:07.6]} 36... Rxc5 {[%clk 0:00:15.9]}
37. Bxe6+ {[%clk 0:00:07]} 37... Kxe6 {[%clk 0:00:16.8]} 38. dxc5 {[%clk
0:00:07.9]} 38... Rb1 {[%clk 0:00:13.8]} 39. Bd4 {[%clk 0:00:08.4]} 39... Rc1
{[%clk 0:00:13.7]} 40. g4 {[%clk 0:00:07.2]} 40... Kd5 {[%clk 0:00:12.5]} 41.
Ke3 {[%clk 0:00:07.3]} 41... Re1+ {[%clk 0:00:12.4]} 42. Kd2 {[%clk 0:00:07.8]}
42... Ra1 {[%clk 0:00:11.9]} 43. Ke3 {[%clk 0:00:06]} 43... Rxa2 {[%clk
0:00:12]} 44. g5 {[%clk 0:00:06.2]} 44... Ra1 {[%clk 0:00:11.6]} 45. f4 {[%clk
0:00:06.7]} 45... Re1+ {[%clk 0:00:11.8]} 46. Kf2 {[%clk 0:00:05.4]} 46... Rb1
{[%clk 0:00:08.1]} 47. Bc3 {[%clk 0:00:05.2]} 47... Ke4 {[%clk 0:00:06.7]} 48.
Be5 {[%clk 0:00:05.7]} 48... Rc1 {[%clk 0:00:05.9]} 49. Ke2 {[%clk 0:00:05.6]}
49... Rxc5 {[%clk 0:00:06]} 50. Kd2 {[%clk 0:00:05.4]} 50... Rxe5 {[%clk
0:00:05.2]} 51. fxe5 {[%clk 0:00:06.3]} 51... Kxe5 {[%clk 0:00:06.1]} 52. Kc3
{[%clk 0:00:07.2]} 52... Kf5 {[%clk 0:00:06.3]} 53. Kb4 {[%clk 0:00:08.1]} 53...
b6 {[%clk 0:00:05.9]} 54. Kc4 {[%clk 0:00:08]} 54... Kxg5 {[%clk 0:00:06.4]} 55.
Kd5 {[%clk 0:00:08.9]} 55... f5 {[%clk 0:00:07.3]} 56. Kc6 {[%clk 0:00:09.8]}
56... f4 {[%clk 0:00:07.6]} 57. Kxb6 {[%clk 0:00:10.7]} 57... f3 {[%clk
0:00:08.2]} 58. Kxa6 {[%clk 0:00:11.6]} 58... f2 {[%clk 0:00:09.1]} 59. b4
{[%clk 0:00:12.5]} 59... f1=Q+ {[%clk 0:00:10]} 60. b5 {[%clk 0:00:13.4]} 60...
Kf6 {[%clk 0:00:09.8]} 61. Ka7 {[%clk 0:00:13.6]} 61... Qxb5 {[%clk 0:00:09.1]}
0-1

[Event "*** Titled Tuesday Blitz"]
[Site "Chess.com"]
[Date "2021.03.09"]
[Round "10"]
[White "PrinceMurad09"]
[Black "moro182"]
[Result "0-1"]
[WhiteElo "2575"]
[BlackElo "2714"]
[TimeControl "180+1"]
[EndTime "12:00:16 PST"]
[Termination "moro182 won by checkmate"]

1. e4 {[%clk 0:03:00.9]} 1... g6 {[%clk 0:02:56.2]} 2. d4 {[%clk 0:03:00.7]}
2... Bg7 {[%clk 0:02:52.8]} 3. Nc3 {[%clk 0:03:00.7]} 3... d6 {[%clk 0:02:51.4]}
4. g3 {[%clk 0:02:56.7]} 4... Nf6 {[%clk 0:02:50.5]} 5. Bg2 {[%clk 0:02:56.2]}
5... O-O {[%clk 0:02:50.2]} 6. Nge2 {[%clk 0:02:54.1]} 6... e5 {[%clk
0:02:47.1]} 7. O-O {[%clk 0:02:52.7]} 7... Nc6 {[%clk 0:02:41.1]} 8. dxe5 {[%clk
0:02:49.3]} 8... Nxe5 {[%clk 0:02:34.3]} 9. h3 {[%clk 0:02:48]} 9... Re8 {[%clk
0:02:31.6]} 10. f4 {[%clk 0:02:42.2]} 10... Nc6 {[%clk 0:02:28.3]} 11. Re1
{[%clk 0:02:37.1]} 11... Be6 {[%clk 0:02:21.8]} 12. Be3 {[%clk 0:02:31.8]} 12...
Qd7 {[%clk 0:02:16.7]} 13. Kh2 {[%clk 0:02:31.3]} 13... Rad8 {[%clk 0:02:14.4]}
14. Qd2 {[%clk 0:02:31.2]} 14... h5 {[%clk 0:02:06.7]} 15. Rad1 {[%clk
0:02:29.9]} 15... h4 {[%clk 0:01:50.6]} 16. g4 {[%clk 0:02:25.5]} 16... Bxg4
{[%clk 0:01:48]} 17. hxg4 {[%clk 0:02:24.1]} 17... Nxg4+ {[%clk 0:01:48.9]} 18.
Kg1 {[%clk 0:02:20]} 18... Nxe3 {[%clk 0:01:44.6]} 19. Qxe3 {[%clk 0:02:19]}
19... Qg4 {[%clk 0:01:40.6]} 20. Qh3 {[%clk 0:02:13.2]} 20... Qh5 {[%clk
0:01:34.2]} 21. Qf3 {[%clk 0:02:03.6]} 21... Qa5 {[%clk 0:01:15.5]} 22. Rd5
{[%clk 0:02:01.3]} 22... Qb6+ {[%clk 0:01:13.6]} 23. Qf2 {[%clk 0:01:55.6]}
23... Qxb2 {[%clk 0:01:11]} 24. Nd1 {[%clk 0:01:53]} 24... Qxc2 {[%clk
0:01:06.3]} 25. Ne3 {[%clk 0:01:52.8]} 25... Qxa2 {[%clk 0:01:05.6]} 26. Qxh4
{[%clk 0:01:52.6]} 26... Ne7 {[%clk 0:00:55]} 27. Rdd1 {[%clk 0:01:47.5]} 27...
Qa5 {[%clk 0:00:53.5]} 28. Kf2 {[%clk 0:01:43.3]} 28... Qh5 {[%clk 0:00:48.4]}
29. Qg3 {[%clk 0:01:38.2]} 29... a5 {[%clk 0:00:45.2]} 30. Rh1 {[%clk
0:01:38.2]} 30... Qc5 {[%clk 0:00:45]} 31. f5 {[%clk 0:01:30.3]} 31... a4 {[%clk
0:00:29.4]} 32. Qh4 {[%clk 0:01:21]} 32... Nxf5 {[%clk 0:00:27.1]} 33. Qh3
{[%clk 0:01:05.2]} 33... Qxe3+ {[%clk 0:00:26.4]} 34. Qxe3 {[%clk 0:01:06.1]}
34... Nxe3 {[%clk 0:00:27.3]} 35. Kxe3 {[%clk 0:01:06.9]} 35... a3 {[%clk
0:00:28.2]} 36. Nd4 {[%clk 0:01:02.1]} 36... a2 {[%clk 0:00:23.7]} 37. Kd3
{[%clk 0:00:59.5]} 37... Ra8 {[%clk 0:00:23]} 38. Nb5 {[%clk 0:00:51.1]} 38...
a1=Q {[%clk 0:00:19.4]} 39. Rxa1 {[%clk 0:00:51.2]} 39... Rxa1 {[%clk
0:00:20.3]} 40. Rxa1 {[%clk 0:00:51.2]} 40... Bxa1 {[%clk 0:00:21.2]} 41. Nxc7
{[%clk 0:00:51.8]} 41... Rc8 {[%clk 0:00:21.1]} 42. Nd5 {[%clk 0:00:50.5]} 42...
Kg7 {[%clk 0:00:21.4]} 43. Bh3 {[%clk 0:00:50.1]} 43... Ra8 {[%clk 0:00:19]} 44.
Bd7 {[%clk 0:00:48.8]} 44... Ra3+ {[%clk 0:00:18.5]} 45. Kc4 {[%clk 0:00:48.8]}
45... Be5 {[%clk 0:00:19]} 46. Bc8 {[%clk 0:00:48.4]} 46... Ra4+ {[%clk
0:00:15.7]} 47. Kd3 {[%clk 0:00:48.3]} 47... b5 {[%clk 0:00:15.7]} 48. Bd7
{[%clk 0:00:48.1]} 48... Ra3+ {[%clk 0:00:16.1]} 49. Kc2 {[%clk 0:00:48.4]}
49... Ra4 {[%clk 0:00:13.6]} 50. Kd3 {[%clk 0:00:47.5]} 50... Rd4+ {[%clk
0:00:13.7]} 51. Ke3 {[%clk 0:00:48]} 51... b4 {[%clk 0:00:13.8]} 52. Ba4 {[%clk
0:00:48.2]} 52... f5 {[%clk 0:00:13]} 53. Nc7 {[%clk 0:00:44.6]} 53... Rxe4+
{[%clk 0:00:12.7]} 54. Kf3 {[%clk 0:00:45]} 54... Kf6 {[%clk 0:00:11.6]} 55.
Nd5+ {[%clk 0:00:45]} 55... Kg5 {[%clk 0:00:11.6]} 56. Bb3 {[%clk 0:00:45.2]}
56... Rd4 {[%clk 0:00:11.5]} 57. Ke2 {[%clk 0:00:44.6]} 57... f4 {[%clk
0:00:11]} 58. Nb6 {[%clk 0:00:43.4]} 58... Kg4 {[%clk 0:00:09.9]} 59. Be6+
{[%clk 0:00:43.3]} 59... Kg3 {[%clk 0:00:09.9]} 60. Bd5 {[%clk 0:00:44.2]} 60...
b3 {[%clk 0:00:06.9]} 61. Bxb3 {[%clk 0:00:44.1]} 61... Rb4 {[%clk 0:00:07]} 62.
Nd5 {[%clk 0:00:43.3]} 62... Rxb3 {[%clk 0:00:06.9]} 63. Nf6 {[%clk 0:00:44.2]}
63... f3+ {[%clk 0:00:07]} 64. Kd1 {[%clk 0:00:44.4]} 64... f2 {[%clk
0:00:06.6]} 65. Ne4+ {[%clk 0:00:44.7]} 65... Kg2 {[%clk 0:00:07.1]} 66. Nd2
{[%clk 0:00:44.7]} 66... Rd3 {[%clk 0:00:07]} 67. Kc2 {[%clk 0:00:45.6]} 67...
Rxd2+ {[%clk 0:00:07.4]} 68. Kb3 {[%clk 0:00:46.5]} 68... f1=Q {[%clk
0:00:06.9]} 69. Ka3 {[%clk 0:00:47.4]} 69... Qd3+ {[%clk 0:00:06.5]} 70. Ka4
{[%clk 0:00:47.3]} 70... Qc4+ {[%clk 0:00:06.3]} 71. Ka3 {[%clk 0:00:47.3]}
71... Ra2# {[%clk 0:00:06.3]} 0-1

[Event "*** Titled Tuesday Blitz"]
[Site "Chess.com"]
[Date "2021.03.09"]
[Round "10"]
[White "GMBenjaminFinegold"]
[Black "Beca95"]
[Result "0-1"]
[WhiteElo "2619"]
[BlackElo "2865"]
[TimeControl "180+1"]
[EndTime "12:00:16 PST"]
[Termination "Beca95 won on time"]

1. d4 {[%clk 0:03:00.9]} 1... Nf6 {[%clk 0:03:00.2]} 2. c4 {[%clk 0:03:00.2]}
2... c5 {[%clk 0:02:59.7]} 3. d5 {[%clk 0:02:59.7]} 3... e6 {[%clk 0:03:00]} 4.
Nf3 {[%clk 0:02:58.8]} 4... d6 {[%clk 0:02:58.9]} 5. Nc3 {[%clk 0:02:57.1]} 5...
exd5 {[%clk 0:02:59.5]} 6. cxd5 {[%clk 0:02:58]} 6... g6 {[%clk 0:02:59.9]} 7.
h3 {[%clk 0:02:58.6]} 7... Bg7 {[%clk 0:02:59.2]} 8. e4 {[%clk 0:02:59.2]} 8...
O-O {[%clk 0:02:59.4]} 9. Bd3 {[%clk 0:02:59.8]} 9... Re8 {[%clk 0:02:59.7]} 10.
O-O {[%clk 0:02:59.2]} 10... Nbd7 {[%clk 0:03:00.3]} 11. Re1 {[%clk 0:02:56.8]}
11... Ne5 {[%clk 0:03:00.3]} 12. Nxe5 {[%clk 0:02:55.4]} 12... Rxe5 {[%clk
0:03:01.2]} 13. Bf4 {[%clk 0:02:54.8]} 13... Nh5 {[%clk 0:03:01.8]} 14. Bh2
{[%clk 0:02:29.7]} 14... Qh4 {[%clk 0:03:00.2]} 15. Re3 {[%clk 0:02:15.9]} 15...
Rg5 {[%clk 0:02:54.3]} 16. Kf1 {[%clk 0:01:56.9]} 16... Be5 {[%clk 0:02:44.8]}
17. Bxe5 {[%clk 0:01:48]} 17... Rxe5 {[%clk 0:02:44.4]} 18. Be2 {[%clk
0:01:38.5]} 18... Nf4 {[%clk 0:02:37]} 19. Bg4 {[%clk 0:01:37.6]} 19... h5
{[%clk 0:02:24.8]} 20. g3 {[%clk 0:01:18.5]} 20... Bxg4 {[%clk 0:02:15]} 21.
gxh4 {[%clk 0:01:18.7]} 21... Bxd1 {[%clk 0:02:13.4]} 22. Rxd1 {[%clk
0:01:19.1]} 22... c4 {[%clk 0:02:09.3]} 23. Rd4 {[%clk 0:01:10.9]} 23... f5
{[%clk 0:01:17.9]} 24. exf5 {[%clk 0:01:00.4]} 24... Rxf5 {[%clk 0:01:17]} 25.
Rxc4 {[%clk 0:00:56.1]} 25... Raf8 {[%clk 0:01:15]} 26. Rc7 {[%clk 0:00:48.9]}
26... R8f7 {[%clk 0:00:50]} 27. Rxf7 {[%clk 0:00:47.4]} 27... Kxf7 {[%clk
0:00:46.2]} 28. Ne4 {[%clk 0:00:46.5]} 28... Kg7 {[%clk 0:00:41.7]} 29. Rf3
{[%clk 0:00:34.2]} 29... Nxd5 {[%clk 0:00:39.9]} 30. Rxf5 {[%clk 0:00:34.2]}
30... gxf5 {[%clk 0:00:40.8]} 31. Nxd6 {[%clk 0:00:34.8]} 31... Kf6 {[%clk
0:00:33.4]} 32. Nxb7 {[%clk 0:00:34.6]} 32... Ke5 {[%clk 0:00:33.7]} 33. Na5
{[%clk 0:00:33.4]} 33... a6 {[%clk 0:00:26]} 34. Ke2 {[%clk 0:00:32.9]} 34...
Ke4 {[%clk 0:00:23.9]} 35. f3+ {[%clk 0:00:28.7]} 35... Kf4 {[%clk 0:00:23.9]}
36. Nc6 {[%clk 0:00:19.9]} 36... Kg3 {[%clk 0:00:23.6]} 37. Nd4 {[%clk
0:00:19.2]} 37... f4 {[%clk 0:00:23.7]} 38. a3 {[%clk 0:00:17.8]} 38... Kxh3
{[%clk 0:00:21.8]} 39. Kf2 {[%clk 0:00:18.3]} 39... Kxh4 {[%clk 0:00:20]} 40. b4
{[%clk 0:00:18.7]} 40... Ne3 {[%clk 0:00:17.2]} 41. Ne6 {[%clk 0:00:15.8]} 41...
Nc2 {[%clk 0:00:17.3]} 42. Nxf4 {[%clk 0:00:13.7]} 42... Nxa3 {[%clk 0:00:16.8]}
43. Ke3 {[%clk 0:00:13.4]} 43... Kg5 {[%clk 0:00:15.9]} 44. Nh3+ {[%clk
0:00:12.5]} 44... Kf5 {[%clk 0:00:15.8]} 45. Kd3 {[%clk 0:00:12.7]} 45... Nb5
{[%clk 0:00:15.7]} 46. Kc4 {[%clk 0:00:12.6]} 46... Ke5 {[%clk 0:00:16.1]} 47.
Kc5 {[%clk 0:00:12.2]} 47... Nc3 {[%clk 0:00:16.5]} 48. Kb6 {[%clk 0:00:11.1]}
48... Na2 {[%clk 0:00:16.8]} 49. Ka5 {[%clk 0:00:10.7]} 49... Kf5 {[%clk
0:00:16.4]} 50. Ka4 {[%clk 0:00:09.9]} 50... Ke5 {[%clk 0:00:16.8]} 51. Kb3
{[%clk 0:00:09.9]} 51... Nc1+ {[%clk 0:00:17]} 52. Ka4 {[%clk 0:00:10.2]} 52...
Ne2 {[%clk 0:00:16.4]} 53. Ka5 {[%clk 0:00:09.2]} 53... Nf4 {[%clk 0:00:16.7]}
54. Nf2 {[%clk 0:00:08.1]} 54... Nd5 {[%clk 0:00:16.7]} 55. Nh3 {[%clk
0:00:06.8]} 55... Kd4 {[%clk 0:00:14.2]} 56. Kxa6 {[%clk 0:00:03.2]} 56... Nxb4+
{[%clk 0:00:13.9]} 57. Kb6 {[%clk 0:00:04.1]} 57... Nd3 {[%clk 0:00:14]} 58. Kc6
{[%clk 0:00:02.8]} 58... Ke5 {[%clk 0:00:13.4]} 59. Kb5 {[%clk 0:00:01.8]} 59...
Nf4 {[%clk 0:00:13.6]} 0-1

[Event "*** Titled Tuesday Blitz"]
[Site "Chess.com"]
[Date "2021.03.09"]
[Round "10"]
[White "GoltsevDmitry2000"]
[Black "profofchess"]
[Result "1/2-1/2"]
[WhiteElo "2685"]
[BlackElo "2498"]
[TimeControl "180+1"]
[EndTime "12:00:16 PST"]
[Termination "Game drawn by repetition"]

1. e4 {[%clk 0:02:59.9]} 1... e6 {[%clk 0:03:00.2]} 2. Nf3 {[%clk 0:03:00.1]}
2... d5 {[%clk 0:03:01.1]} 3. exd5 {[%clk 0:03:00.3]} 3... exd5 {[%clk 0:03:01]}
4. d4 {[%clk 0:03:00.5]} 4... Nf6 {[%clk 0:03:00.9]} 5. Bd3 {[%clk 0:03:00.8]}
5... c5 {[%clk 0:02:59.3]} 6. dxc5 {[%clk 0:03:00.5]} 6... Bxc5 {[%clk
0:02:58.9]} 7. O-O {[%clk 0:03:00.9]} 7... O-O {[%clk 0:02:57.9]} 8. Bg5 {[%clk
0:03:01.1]} 8... h6 {[%clk 0:02:57.9]} 9. Bh4 {[%clk 0:03:00.5]} 9... Nc6 {[%clk
0:02:56.4]} 10. Nc3 {[%clk 0:03:00.4]} 10... d4 {[%clk 0:02:47.2]} 11. Ne4
{[%clk 0:02:59.5]} 11... Be7 {[%clk 0:02:47.4]} 12. Nxf6+ {[%clk 0:02:59.1]}
12... Bxf6 {[%clk 0:02:47.8]} 13. Bg3 {[%clk 0:02:58.4]} 13... Bg4 {[%clk
0:02:43.8]} 14. h3 {[%clk 0:02:58.1]} 14... Bh5 {[%clk 0:02:36.1]} 15. Re1
{[%clk 0:02:53.5]} 15... Qd5 {[%clk 0:02:21.7]} 16. Be4 {[%clk 0:02:47.3]} 16...
Qb5 {[%clk 0:02:21.8]} 17. Qd3 {[%clk 0:02:41.2]} 17... Qxd3 {[%clk 0:02:00.4]}
18. cxd3 {[%clk 0:02:41.2]} 18... Bg6 {[%clk 0:01:26.8]} 19. a3 {[%clk
0:02:39.7]} 19... Bxe4 {[%clk 0:01:25.9]} 20. Rxe4 {[%clk 0:02:39.1]} 20... Rfe8
{[%clk 0:01:24.2]} 21. Rxe8+ {[%clk 0:02:36.2]} 21... Rxe8 {[%clk 0:01:23.7]}
22. Kf1 {[%clk 0:02:37.1]} 22... g5 {[%clk 0:00:59.2]} 23. Rc1 {[%clk
0:02:36.5]} 23... h5 {[%clk 0:00:54.9]} 24. Nd2 {[%clk 0:02:36.6]} 24... h4
{[%clk 0:00:35.3]} 25. Bh2 {[%clk 0:02:36.6]} 25... Be5 {[%clk 0:00:35.4]} 26.
Bxe5 {[%clk 0:02:32.6]} 26... Nxe5 {[%clk 0:00:35.1]} 27. Ne4 {[%clk 0:02:24.1]}
27... Nxd3 {[%clk 0:00:29.6]} 28. Nf6+ {[%clk 0:02:24.3]} 28... Kf8 {[%clk
0:00:29.5]} 29. Rd1 {[%clk 0:02:20.7]} 29... Nxb2 {[%clk 0:00:25]} 30. Rxd4
{[%clk 0:02:15.4]} 30... Rc8 {[%clk 0:00:22.3]} 31. Nh7+ {[%clk 0:02:13]} 31...
Kg7 {[%clk 0:00:21.4]} 32. Nxg5 {[%clk 0:02:13.5]} 32... Kg6 {[%clk 0:00:18.3]}
33. Nf3 {[%clk 0:02:13.3]} 33... Rc3 {[%clk 0:00:14.7]} 34. Nxh4+ {[%clk
0:02:09.8]} 34... Kf6 {[%clk 0:00:14.4]} 35. Rb4 {[%clk 0:02:08.9]} 35... Nd3
{[%clk 0:00:07.5]} 36. Rxb7 {[%clk 0:02:09.1]} 36... Rxa3 {[%clk 0:00:07.5]} 37.
Nf3 {[%clk 0:02:06.1]} 37... a5 {[%clk 0:00:07.5]} 38. Nd2 {[%clk 0:02:05.1]}
38... a4 {[%clk 0:00:07.3]} 39. Ne4+ {[%clk 0:02:04.2]} 39... Kg6 {[%clk
0:00:06.6]} 40. h4 {[%clk 0:02:01.1]} 40... Nf4 {[%clk 0:00:04.7]} 41. Kg1
{[%clk 0:01:57.1]} 41... Ra1+ {[%clk 0:00:04.6]} 42. Kh2 {[%clk 0:01:57.4]}
42... a3 {[%clk 0:00:05.5]} 43. g4 {[%clk 0:01:56]} 43... a2 {[%clk 0:00:04.9]}
44. Nc3 {[%clk 0:01:54.6]} 44... Rf1 {[%clk 0:00:04.4]} 45. Nxa2 {[%clk
0:01:52.8]} 45... Rxf2+ {[%clk 0:00:04.8]} 46. Kg3 {[%clk 0:01:53.4]} 46... Rxa2
{[%clk 0:00:05.5]} 47. Kxf4 {[%clk 0:01:54]} 47... Ra4+ {[%clk 0:00:05.8]} 48.
Kf3 {[%clk 0:01:53.7]} 48... Ra3+ {[%clk 0:00:06.2]} 49. Ke2 {[%clk 0:01:54.3]}
49... Ra2+ {[%clk 0:00:06.7]} 50. Ke3 {[%clk 0:01:49.9]} 50... Ra3+ {[%clk
0:00:06.8]} 51. Kd2 {[%clk 0:01:49.7]} 51... Ra4 {[%clk 0:00:06.9]} 52. Rb6+
{[%clk 0:01:49.1]} 52... Kg7 {[%clk 0:00:06.8]} 53. h5 {[%clk 0:01:45.1]} 53...
Rxg4 {[%clk 0:00:06.9]} 54. Ke3 {[%clk 0:01:45.2]} 54... Rh4 {[%clk 0:00:07.2]}
55. Rb5 {[%clk 0:01:45.1]} 55... Kh6 {[%clk 0:00:07.3]} 56. Kf3 {[%clk
0:01:45.3]} 56... Rxh5 {[%clk 0:00:07.6]} 57. Rb7 {[%clk 0:01:46.2]} 57... Kg7
{[%clk 0:00:07.5]} 58. Kg4 {[%clk 0:01:46.6]} 58... Ra5 {[%clk 0:00:07.9]} 59.
Rb6 {[%clk 0:01:46.8]} 59... f6 {[%clk 0:00:08]} 60. Kf4 {[%clk 0:01:46.9]}
60... Kg6 {[%clk 0:00:08.2]} 61. Rb8 {[%clk 0:01:47.4]} 61... Ra4+ {[%clk
0:00:08.5]} 62. Kf3 {[%clk 0:01:47.9]} 62... Kg5 {[%clk 0:00:08.6]} 63. Rh8
{[%clk 0:01:48.3]} 63... Ra3+ {[%clk 0:00:08.1]} 64. Ke4 {[%clk 0:01:48.5]}
64... f5+ {[%clk 0:00:08.5]} 65. Ke5 {[%clk 0:01:48.7]} 65... Re3+ {[%clk
0:00:08.6]} 66. Kd4 {[%clk 0:01:49.3]} 66... Re1 {[%clk 0:00:08.5]} 67. Rg8+
{[%clk 0:01:49.7]} 67... Kf4 {[%clk 0:00:08.6]} 68. Kd3 {[%clk 0:01:50.6]} 68...
Re7 {[%clk 0:00:07.8]} 69. Rg1 {[%clk 0:01:50.4]} 69... Kf3 {[%clk 0:00:07]} 70.
Rf1+ {[%clk 0:01:49.3]} 70... Kg4 {[%clk 0:00:07.3]} 71. Rg1+ {[%clk 0:01:50]}
71... Kh5 {[%clk 0:00:06.8]} 72. Rh1+ {[%clk 0:01:50.3]} 72... Kg5 {[%clk
0:00:07.1]} 73. Rg1+ {[%clk 0:01:51.2]} 73... Kf6 {[%clk 0:00:07.5]} 74. Rf1
{[%clk 0:01:51.9]} 74... Re5 {[%clk 0:00:07.1]} 75. Kd4 {[%clk 0:01:51.9]} 75...
Re4+ {[%clk 0:00:06.7]} 76. Kd5 {[%clk 0:01:52.3]} 76... Re8 {[%clk 0:00:07.6]}
77. Kd4 {[%clk 0:01:52]} 77... Re4+ {[%clk 0:00:06.7]} 78. Kd3 {[%clk
0:01:51.9]} 78... Ke5 {[%clk 0:00:06.8]} 79. Ra1 {[%clk 0:01:51.7]} 79... Rh4
{[%clk 0:00:06.4]} 80. Ra5+ {[%clk 0:01:51.8]} 80... Kf6 {[%clk 0:00:06.7]} 81.
Ke3 {[%clk 0:01:52.4]} 81... Rh3+ {[%clk 0:00:06.1]} 82. Kf4 {[%clk 0:01:52.8]}
82... Rh4+ {[%clk 0:00:06.5]} 83. Kg3 {[%clk 0:01:53.3]} 83... Rb4 {[%clk
0:00:07.4]} 84. Kf3 {[%clk 0:01:53]} 84... Kg5 {[%clk 0:00:07.5]} 85. Ra8 {[%clk
0:01:53]} 85... Rb3+ {[%clk 0:00:07.8]} 86. Kf2 {[%clk 0:01:53.8]} 86... Kg4
{[%clk 0:00:07.6]} 87. Rg8+ {[%clk 0:01:52.5]} 87... Kf4 {[%clk 0:00:07.8]} 88.
Ra8 {[%clk 0:01:53.4]} 88... Rb2+ {[%clk 0:00:08]} 89. Kf1 {[%clk 0:01:54]}
89... Kg3 {[%clk 0:00:05.7]} 90. Ra3+ {[%clk 0:01:54.1]} 90... Kg4 {[%clk
0:00:05.6]} 91. Rc3 {[%clk 0:01:55]} 91... f4 {[%clk 0:00:05.8]} 92. Kg1 {[%clk
0:01:55.5]} 92... f3 {[%clk 0:00:04.4]} 93. Rc8 {[%clk 0:01:56]} 93... Kg3
{[%clk 0:00:04.6]} 94. Rg8+ {[%clk 0:01:56.4]} 94... Kf4 {[%clk 0:00:05]} 95.
Kf1 {[%clk 0:01:56.9]} 95... Rb1+ {[%clk 0:00:04.7]} 96. Kf2 {[%clk 0:01:57.1]}
96... Rb2+ {[%clk 0:00:05.6]} 97. Kf1 {[%clk 0:01:57.7]} 97... Rb1+ {[%clk
0:00:06.2]} 98. Kf2 {[%clk 0:01:58.2]} 98... Rb2+ {[%clk 0:00:06.9]} 99. Kf1
{[%clk 0:01:58.4]} 1/2-1/2